bitfinex/quotes_BTCUSD_20260127
["timestamp","ask_amount","ask_price","bid_price","bid_amount"]
[1769540882107,0.03,88162.0,88145.0,0.19460594]
[1769540882364,0.33872782,88173.0,88145.0,0.19507021]
[1769540882365,0.05278118,88158.0,88145.0,0.19507021]
[1769540882542,0.03,88158.0,88145.0,0.00046427]
[1769540882750,0.03,88154.0,88145.0,0.00046427]
[1769540882950,0.05278118,88152.0,88145.0,0.00046427]
[1769540883150,0.02278118,88152.0,88145.0,0.00046427]
[1769540883963,0.00478962,88151.0,88145.0,0.00046427]
[1769540884132,0.03,88147.0,88145.0,0.00046427]
[1769540884336,0.05278118,88146.0,88145.0,0.00046427]
[1769540884533,0.05278118,88146.0,88134.0,0.19675922]
[1769540884534,0.03,88146.0,88126.0,0.19675922]
[1769540884783,0.03,88140.0,88126.0,0.19675922]
[1769540885223,0.03,88140.0,88128.0,0.19716223]
[1769540885645,0.00046391,88146.0,88140.0,0.01]
[1769540886018,0.00046391,88146.0,88139.0,0.19683927]
[1769540887719,0.03,88144.0,88130.0,0.19683927]
[1769540889074,0.03,88143.0,88130.0,0.22121015]
[1769540889685,0.00046391,88146.0,88128.0,0.00032296]
[1769540889686,0.03,88141.0,88128.0,0.00032296]
[1769540889898,0.03,88141.0,88128.0,0.19716223]
[1769540890114,0.03,88139.0,88128.0,0.19716223]
[1769540890329,0.03,88137.0,88128.0,0.00032296]
[1769540890550,0.03,88131.0,88128.0,0.00032296]
[1769540890757,0.03,88129.0,88128.0,0.00032296]
[1769540891224,0.03,88127.0,88124.0,0.0003026]
[1769540891443,0.07988068,88125.0,88124.0,0.0003026]
[1769540891693,0.02278118,88133.0,88125.0,0.01]
[1769540891891,0.02278118,88125.0,88124.0,0.0003026]
[1769540892463,0.04988068,88126.0,88124.0,0.0003026]
[1769540892650,0.05278118,88134.0,88125.0,0.01]
[1769540892820,0.03,88134.0,88125.0,0.01]
[1769540893032,0.03,88134.0,88125.0,0.20683927]
[1769540893314,0.00046391,88146.0,88125.0,0.20683927]
[1769540893541,0.04988068,88136.0,88125.0,0.23121015]
[1769540893795,0.03,88135.0,88125.0,0.23121015]
[1769540894009,0.03,88135.0,88125.0,0.19683927]
[1769540894656,0.04988068,88136.0,88125.0,0.19683927]
[1769540895343,0.02278118,88135.0,88124.0,0.0003026]
[1769540899439,0.04988068,88136.0,88124.0,0.0003026]
[1769540899653,0.04988068,88136.0,88125.0,0.19683927]
[1769540900683,0.03,88143.0,88127.0,0.02437088]
[1769540900889,0.04988068,88144.0,88130.0,0.18720124]
[1769540901097,0.04988068,88144.0,88133.0,0.0240526]
[1769540901307,0.04988068,88144.0,88134.0,0.18618266]
[1769540901482,0.04988068,88144.0,88134.0,0.18459071]
[1769540901690,0.04988068,88144.0,88134.0,0.18299826]
[1769540901848,0.04988068,88144.0,88134.0,0.18140531]
[1769540902057,0.04988068,88144.0,88134.0,0.18013059]
[1769540902356,0.04988068,88144.0,88134.0,0.17758019]
[1769540902563,0.04988068,88144.0,88134.0,0.17694239]
[1769540904478,0.04988068,88142.0,88134.0,0.17694239]
[1769540904680,0.02379698,88159.0,88128.0,0.18632944]
[1769540904896,0.02379698,88159.0,88131.0,0.02282674]
[1769540905104,0.02379698,88157.0,88131.0,0.18632944]
[1769540905456,0.1166,88164.0,88128.0,0.00046391]
[1769540905457,0.04988068,88144.0,88133.0,0.18632944]
[1769540905659,0.03,88143.0,88133.0,0.18632944]
[1769540905961,0.03,88143.0,88133.0,0.20915618]
[1769540907560,0.05672024,88152.0,88133.0,0.20915618]
[1769540907561,0.03,88152.0,88133.0,0.20940328]
[1769540907764,0.03,88141.0,88133.0,0.20940328]
[1769540908784,0.03,88151.0,88133.0,0.18657654]
[1769540908920,0.04988068,88158.0,88135.0,0.18632944]
[1769540909122,0.04988068,88158.0,88143.0,0.18632944]
[1769540909320,0.04988068,88158.0,88145.0,0.18529788]
[1769540909603,0.04988068,88158.0,88145.0,0.18392218]
[1769540909760,0.04988068,88158.0,88145.0,0.18254611]
[1769540909940,0.03,88157.0,88145.0,0.18116965]
[1769540910146,0.03,88157.0,88145.0,0.17944854]
[1769540910353,0.03,88157.0,88145.0,0.17875993]
[1769540910549,0.03,88157.0,88145.0,0.20158667]
[1769540910751,0.03,88157.0,88146.0,0.02282674]
[1769540910980,0.03,88157.0,88147.0,0.18632944]
[1769540912891,0.03,88157.0,88147.0,0.18564082]
[1769540913091,0.03,88157.0,88147.0,0.1839192]
[1769540913290,0.03,88157.0,88147.0,0.18288617]
[1769540913491,0.03,88157.0,88147.0,0.18150873]
[1769540913694,0.03,88157.0,88147.0,0.18013123]
[1769540913901,0.03,88157.0,88147.0,0.17909805]
[1769540914101,0.03,88157.0,88147.0,0.17772042]
[1769540914305,0.03,88157.0,88147.0,0.17599828]
[1769540914502,0.03,88157.0,88147.0,0.17427603]
[1769540914864,0.03,88157.0,88147.0,0.17186469]
[1769540915073,0.27105611,88180.0,88148.0,0.18632944]
[1769540915285,0.04988068,88175.0,88161.0,0.02282674]
[1769540915493,0.04988068,88175.0,88162.0,0.18632944]
[1769540915735,0.04988068,88175.0,88163.0,0.02282674]
[1769540915945,0.04988068,88175.0,88166.0,0.18632944]
[1769540916163,0.04988068,88175.0,88166.0,0.20915618]
[1769540916382,0.0001735,88180.0,88160.0,0.27088261]
[1769540916383,0.0001735,88180.0,88168.0,0.18632944]
[1769540916647,0.04988068,88185.0,88177.0,0.18632944]
[1769540916857,0.04988068,88185.0,88175.0,0.01]
[1769540916858,0.04988068,88185.0,88179.0,0.21008347]
[1769540917693,0.05669283,88195.0,88179.0,0.21008347]
[1769540917914,0.04988068,88185.0,88171.0,0.18632944]
[1769540918127,0.04988068,88185.0,88173.0,0.18632944]
[1769540918348,0.04988068,88185.0,88176.0,0.02282674]
[1769540918971,0.05669463,88192.0,88176.0,0.20915618]
[1769540919173,0.04988068,88184.0,88176.0,0.20915618]
[1769540919379,0.0069892,88195.0,88176.0,0.20915618]
[1769540919588,0.04988068,88184.0,88176.0,0.20915618]
[1769540919794,0.04988068,88184.0,88176.0,0.20881178]
[1769540920011,0.04988068,88184.0,88176.0,0.20708978]
[1769540920224,0.04988068,88184.0,88176.0,0.20536778]
[1769540920442,0.04988068,88183.0,88177.0,0.18632944]
[1769540920649,0.0069892,88195.0,88177.0,0.20743417]
[1769540920856,0.04988068,88184.0,88179.0,0.18598501]
[1769540921058,0.04988068,88184.0,88181.0,0.18564053]
[1769540921269,0.04988068,88184.0,88178.0,0.02282674]
[1769540922601,0.04988068,88184.0,88175.0,0.18632944]
[1769540922839,0.04988068,88184.0,88174.0,0.18632944]
[1769540923044,0.04988068,88184.0,88174.0,0.20915618]
[1769540923891,0.0069892,88195.0,88175.0,0.02282674]
[1769540924099,0.0069892,88195.0,88170.0,0.27088261]
[1769540924100,0.0069892,88195.0,88178.0,0.18632944]
[1769540924278,0.0069892,88195.0,88180.0,0.18632944]
[1769540924506,0.0069892,88195.0,88180.0,0.18324758]
[1769540924736,0.07956134,88201.0,88181.0,0.20778942]
[1769540924940,0.05668948,88200.0,88181.0,0.2043721]
[1769540925145,0.05669215,88196.0,88181.0,0.20095403]
[1769540925339,0.03,88195.0,88181.0,0.198219]
[1769540925627,0.03,88195.0,88181.0,0.19343146]
[1769540925830,0.03,88195.0,88181.0,0.19001083]
[1769540925967,0.03,88195.0,88181.0,0.18727375]
[1769540926168,0.03,88197.0,88181.0,0.18385169]
[1769540926374,0.03,88197.0,88181.0,0.18111347]
[1769540926605,0.18149248,88197.0,88181.0,0.17871053]
[1769540926872,0.03,88197.0,88181.0,0.1739167]
[1769540927239,0.04988068,88199.0,88181.0,0.16912128]
[1769540927240,0.03,88196.0,88181.0,0.16912128]
[1769540927460,0.03,88196.0,88181.0,0.16569502]
[1769540927662,0.03,88196.0,88181.0,0.16295344]
[1769540927842,0.03,88196.0,88181.0,0.15952574]
[1769540928048,0.03,88196.0,88181.0,0.15609724]
[1769540928226,0.08669066,88198.0,88181.0,0.15335386]
[1769540928444,0.03,88196.0,88181.0,0.14992392]
[1769540928607,0.03,88196.0,88181.0,0.14717939]
[1769540928811,0.03,88196.0,88181.0,0.14580694]
[1769540929100,0.03,88196.0,88181.0,0.14512066]
[1769540929301,0.03,88196.0,88181.0,0.14202627]
[1769540929505,0.03,88195.0,88181.0,0.13859373]
[1769540929710,0.03,88195.0,88181.0,0.13584712]
[1769540929838,0.03,88184.0,88181.0,0.11027326]
[1769540930044,0.03,88184.0,88181.0,0.10683864]
[1769540930243,0.03,88184.0,88181.0,0.10409037]
[1769540930428,0.03,88184.0,88181.0,0.02651274]
[1769540930641,0.03,88184.0,88176.0,0.18632944]
[1769540930881,0.03,88184.0,88169.0,0.18632944]
[1769540931082,0.03,88184.0,88170.0,0.18632944]
[1769540931282,0.03,88184.0,88170.0,0.20915618]
[1769540931667,0.03,88184.0,88172.0,0.18632944]
[1769540931842,0.03,88184.0,88172.0,0.18322738]
[1769540932146,0.03,88184.0,88172.0,0.17495823]
[1769540932354,0.03,88184.0,88172.0,0.17082334]
[1769540932489,0.03,88184.0,88172.0,0.16668824]
[1769540932691,0.03,88184.0,88172.0,0.16255294]
[1769540932990,0.03,88184.0,88172.0,0.15531564]
[1769540933196,0.03,88184.0,88172.0,0.15117975]
[1769540935240,0.03,88184.0,88172.0,0.15014575]
[1769540935437,0.03,88184.0,88172.0,0.14497553]
[1769540935712,0.03,88184.0,88172.0,0.14083913]
[1769540936650,0.03,88184.0,88172.0,0.14077513]
[1769540937448,0.02379698,88191.0,88170.0,0.27088261]
[1769540937449,0.03,88183.0,88174.0,0.19987477]
[1769540937729,0.03,88183.0,88175.0,0.19987477]
[1769540938762,0.03,88182.0,88175.0,0.19987477]
[1769540939304,0.03,88180.0,88175.0,0.19987477]
[1769540941846,0.03,88180.0,88171.0,0.19987477]
[1769540942233,0.02455786,88191.0,88171.0,0.19987477]
[1769540942438,0.04988068,88182.0,88171.0,0.23983221]
[1769540942617,0.04988068,88182.0,88171.0,0.22482473]
[1769540943030,0.04988068,88182.0,88172.0,0.19987477]
[1769540943239,0.02455786,88191.0,88173.0,0.02494996]
[1769540943442,0.02455786,88191.0,88174.0,0.22482473]
[1769540944214,0.03,88190.0,88174.0,0.22482473]
[1769540945627,0.03,88190.0,88175.0,0.02494996]
[1769540945826,0.03,88190.0,88176.0,0.19987477]
[1769540946029,0.03,88189.0,88180.0,0.27088261]
[1769540946227,0.03,88189.0,88181.0,0.1947039]
[1769540946429,0.03,88189.0,88181.0,0.18953205]
[1769540946644,0.03,88189.0,88181.0,0.18539371]
[1769540946836,0.03,88189.0,88181.0,0.1802197]
[1769540947037,0.03,88188.0,88181.0,0.17607962]
[1769540947238,0.03,88188.0,88181.0,0.17090343]
[1769540947444,0.03,88188.0,88181.0,0.16676161]
[1769540948197,0.03,88187.0,88181.0,0.16676161]
[1769540949228,0.03,88186.0,88181.0,0.16676161]
[1769540949426,0.03,88186.0,88171.0,0.11652]
[1769540949427,0.04988068,88199.0,88187.0,0.19987477]
[1769540949584,0.11357513,88198.0,88187.0,0.19202521]
[1769540949794,0.11357513,88197.0,88187.0,0.18758254]
[1769540949998,0.11357513,88196.0,88187.0,0.18758254]
[1769540950322,0.03,88192.0,88172.0,0.19987477]
[1769540950666,0.03,88192.0,88176.0,0.19987477]
[1769540951192,0.03,88194.0,88176.0,0.19987477]
[1769540951398,0.03,88191.0,88176.0,0.19987477]
[1769540951602,0.03,88191.0,88181.0,0.19987477]
[1769540951802,0.03,88191.0,88180.0,0.27088261]
[1769540952203,0.03,88190.0,88180.0,0.27088261]
[1769540952408,0.03,88190.0,88177.0,0.19987477]
[1769540952606,0.03,88190.0,88177.0,0.22482473]
[1769540952804,0.03,88184.0,88178.0,0.11652]
[1769540953570,0.02455786,88194.0,88184.0,0.01]
[1769540953750,0.03,88193.0,88184.0,0.00585681]
[1769540953952,0.03,88193.0,88179.0,0.19987477]
[1769540954362,0.03,88193.0,88181.0,0.19987477]
[1769540954633,0.03,88193.0,88185.0,0.19987477]
[1769540954755,0.03,88192.0,88185.0,0.2191913]
[1769540954956,0.03,88192.0,88179.0,0.19987477]
[1769540955212,0.03,88192.0,88181.0,0.19987477]
[1769540955412,0.03,88192.0,88183.0,0.19987477]
[1769540955556,0.04988068,88193.0,88183.0,0.19987477]
[1769540955767,0.04988068,88193.0,88184.0,0.02494996]
[1769540955967,0.04988068,88193.0,88185.0,0.21928303]
[1769540956167,0.04988068,88193.0,88185.0,0.21410048]
[1769540956421,0.04988068,88193.0,88185.0,0.20891718]
[1769540956755,0.04988068,88193.0,88185.0,0.20269623]
[1769540956922,0.04988068,88193.0,88185.0,0.19751128]
[1769540957068,0.04988068,88193.0,88185.0,0.19232558]
[1769540957271,0.04988068,88193.0,88185.0,0.18713913]
[1769540957622,0.04988068,88193.0,88185.0,0.18506434]
[1769540958606,0.03,88203.0,88185.0,0.18506434]
[1769540958779,0.03,88192.0,88185.0,0.02494996]
[1769540959892,0.03,88192.0,88185.0,0.22482473]
[1769540960831,0.03,88192.0,88185.0,0.22274935]
[1769540964179,0.22013178,88204.0,88186.0,0.02424296]
[1769540964180,0.01698062,88204.0,88186.0,0.02424296]
[1769540964397,0.11354684,88203.0,88190.0,0.27056012]
[1769540964631,0.11354684,88202.0,88193.0,0.02480576]
[1769540964891,0.04988068,88208.0,88197.0,0.02480576]
[1769540965144,0.16342142,88207.0,88198.0,0.27056012]
[1769540965365,0.11354074,88206.0,88198.0,0.27056012]
[1769540965580,0.01455837,88214.0,88198.0,0.49209828]
[1769540965793,0.04988068,88207.0,88198.0,0.29536588]
[1769540966008,0.04988068,88207.0,88198.0,0.27056012]
[1769540966009,0.11351531,88206.0,88198.0,0.27056012]
[1769540966233,0.0002103,88218.0,88201.0,0.1967324]
[1769540966433,0.0002103,88218.0,88202.0,0.22153816]
[1769540966679,0.0002103,88218.0,88203.0,0.02480576]
[1769540967231,0.0002103,88218.0,88206.0,0.1967324]
[1769540967441,0.0002103,88218.0,88206.0,0.19686922]
[1769540968050,0.0002103,88218.0,88206.0,0.19479414]
[1769540968279,0.18807457,88217.0,88205.0,0.02480576]
[1769540968481,0.18821131,88217.0,88205.0,0.02120024]
[1769540968620,0.00013674,88217.0,88205.0,0.01759408]
[1769540968819,0.00013674,88217.0,88205.0,0.01488904]
[1769540969018,0.00013674,88217.0,88205.0,0.01037984]
[1769540969216,0.00030144,88217.0,88205.0,0.00586964]
[1769540969418,0.00030144,88217.0,88205.0,0.00045608]
[1769540969617,0.00030144,88217.0,88204.0,0.11652]
[1769540969859,0.00030144,88217.0,88204.0,0.11291014]
[1769540970059,0.00030144,88217.0,88204.0,0.1091596]
[1769540970263,0.00030144,88217.0,88204.0,0.10825652]
[1769540970621,0.00030144,88217.0,88205.0,0.22153816]
[1769540971552,0.00030144,88217.0,88208.0,0.1967324]
[1769540971734,0.00030144,88217.0,88208.0,0.19312004]
[1769540971937,0.00030144,88217.0,88208.0,0.18860409]
[1769540972137,0.00030144,88217.0,88208.0,0.18408761]
[1769540972361,0.00030144,88217.0,88205.0,0.02480576]
[1769540973156,0.00030144,88217.0,88206.0,0.1967324]
[1769540974122,0.00030144,88217.0,88205.0,0.02480576]
[1769540975228,0.00030144,88217.0,88206.0,0.1967324]
[1769540975442,0.00030144,88217.0,88205.0,0.02480576]
[1769540977325,0.00030144,88217.0,88208.0,0.1967324]
[1769540977560,0.00030144,88217.0,88209.0,0.02480576]
[1769540977773,0.0006026,88222.0,88207.0,0.27056012]
[1769540977774,0.0006026,88222.0,88211.0,0.02480576]
[1769540977986,0.0006026,88222.0,88212.0,0.22104216]
[1769540978201,0.11335255,88221.0,88212.0,0.21756533]
[1769540978431,0.14335255,88220.0,88212.0,0.21304792]
[1769540978664,0.0006026,88222.0,88212.0,0.2094336]
[1769540978883,0.17318501,88238.0,88212.0,0.2094336]
[1769540978884,0.30930507,88238.0,88214.0,0.1967324]
[1769540979093,0.04988068,88226.0,88220.0,0.27056012]
[1769540979301,0.04988068,88226.0,88217.0,0.1967324]
[1769540979517,0.03,88225.0,88218.0,0.02480576]
[1769540979976,0.03,88225.0,88217.0,0.1967324]
[1769540980208,0.03,88216.0,88212.0,0.00013674]
[1769540980414,0.03,88216.0,88213.0,0.11652]
[1769540980617,0.03,88216.0,88213.0,0.11353617]
[1769540980743,0.03,88216.0,88213.0,0.10937576]
[1769540980979,0.03,88216.0,88213.0,0.10417521]
[1769540981174,0.03,88215.0,88213.0,0.09897461]
[1769540981379,0.03,88215.0,88213.0,0.09377374]
[1769540981586,0.03,88215.0,88212.0,0.00013674]
[1769540981820,0.32723024,88230.0,88212.0,0.00013674]
[1769540981821,0.05666771,88234.0,88213.0,0.02480576]
[1769540981992,0.18807457,88234.0,88214.0,0.19539342]
[1769540982215,0.0545014,88233.0,88214.0,0.21350392]
[1769540982412,0.24257597,88233.0,88214.0,0.20680792]
[1769540982619,0.03,88231.0,88214.0,0.17664482]
[1769540982825,0.03,88231.0,88216.0,0.22153816]
[1769540983190,0.03,88225.0,88216.0,0.22153816]
[1769540983799,0.03,88225.0,88212.0,0.00013674]
[1769540984673,0.21807457,88223.0,88212.0,0.00013674]
[1769540984851,0.03,88221.0,88212.0,0.00013674]
[1769540985458,0.03,88221.0,88206.0,0.11652]
[1769540985807,0.0301391,88221.0,88208.0,0.1967324]
[1769540986033,0.0001391,88221.0,88210.0,0.27056012]
[1769540986642,0.0001391,88221.0,88208.0,0.1967324]
[1769540986841,0.0001391,88221.0,88210.0,0.27056012]
[1769540987356,0.03,88222.0,88210.0,0.27056012]
[1769540987580,0.03,88222.0,88210.0,0.27069922]
[1769540987799,0.03,88222.0,88210.0,0.46743162]
[1769540988002,0.03,88222.0,88210.0,0.27069922]
[1769540988206,0.03,88222.0,88211.0,0.22153816]
[1769540988356,0.03,88221.0,88213.0,0.2]
[1769540988567,0.03,88221.0,88213.0,0.19330238]
[1769540988781,0.03,88221.0,88213.0,0.18526469]
[1769540988983,0.03,88221.0,88213.0,0.17856615]
[1769540989186,0.03,88221.0,88214.0,0.19137313]
[1769540989422,0.03,88230.0,88214.0,0.18735348]
[1769540989573,0.03,88225.0,88214.0,0.18735348]
[1769540990234,0.03,88225.0,88216.0,0.22153816]
[1769540990575,0.0006026,88235.0,88216.0,0.22153816]
[1769540990777,0.03,88233.0,88216.0,0.22153816]
[1769540990975,0.03,88231.0,88216.0,0.22153816]
[1769540991223,0.03,88229.0,88216.0,0.22153816]
[1769540991447,0.11332318,88228.0,88216.0,0.22153816]
[1769540991765,0.03,88227.0,88216.0,0.22153816]
[1769540991937,0.03,88225.0,88216.0,0.22153816]
[1769540992554,0.0006026,88235.0,88218.0,0.1967324]
[1769540992783,0.11335518,88234.0,88226.0,0.1967324]
[1769540992947,0.03,88232.0,88226.0,0.1967324]
[1769540993146,0.03,88230.0,88226.0,0.1967324]
[1769540993370,0.03,88228.0,88221.0,0.02480576]
[1769540993581,0.03,88228.0,88222.0,0.1967324]
[1769540994383,0.03,88227.0,88223.0,0.20145295]
[1769540994619,0.03,88227.0,88223.0,0.22494021]
[1769540994840,0.03,88227.0,88224.0,0.20145295]
[1769540994977,0.03,88227.0,88225.0,0.02348726]
[1769540995177,0.0006026,88235.0,88225.0,0.22494021]
[1769540995461,0.03,88233.0,88225.0,0.49550033]
[1769540995589,0.03,88231.0,88225.0,0.49550033]
[1769540995801,0.03,88229.0,88225.0,0.22494021]
[1769540996574,0.0006026,88235.0,88227.0,0.20145295]
[1769540996789,0.0006026,88235.0,88220.0,0.27056012]
[1769540996790,0.0004,88246.0,88235.0,0.27056012]
[1769540996942,0.0004,88246.0,88232.0,0.22494021]
[1769540997285,0.03,88235.0,88219.0,0.11648]
[1769540997426,0.03,88233.0,88219.0,0.116416]
[1769540997839,0.03,88233.0,88221.0,0.20145295]
[1769540998452,0.03,88236.0,88220.0,0.27056012]
[1769540998687,0.03,88236.0,88221.0,0.20145295]
[1769540998864,0.03,88236.0,88226.0,0.27056012]
[1769540999077,0.03,88236.0,88222.0,0.22494021]
[1769540999488,0.03,88235.0,88222.0,0.22494021]
[1769540999958,0.03,88235.0,88220.0,0.27056012]
[1769540999959,0.03,88235.0,88224.0,0.20145295]
[1769541000164,0.03,88235.0,88225.0,0.27056012]
[1769541000367,0.03,88234.0,88229.0,0.20145295]
[1769541000584,0.02449566,88244.0,88224.0,0.27056012]
[1769541000789,0.04988068,88240.0,88230.0,0.27056012]
[1769541001633,0.03,88239.0,88230.0,0.27056012]
[1769541001833,0.03,88229.0,88221.0,0.02348726]
[1769541002037,0.03,88229.0,88223.0,0.02348726]
[1769541002239,0.03,88229.0,88225.0,0.22494021]
[1769541002466,0.03,88229.0,88220.0,0.27056012]
[1769541002795,0.03,88229.0,88216.0,0.11648]
[1769541002914,0.0004,88246.0,88222.0,0.20145295]
[1769541003116,0.02449566,88245.0,88229.0,0.20145295]
[1769541003361,0.0566606,88245.0,88228.0,0.47201307]
[1769541003582,0.0566606,88245.0,88216.0,0.11648]
[1769541003583,0.02449566,88242.0,88221.0,0.20145295]
[1769541003767,0.02449566,88242.0,88221.0,0.22494021]
[1769541003968,0.05449566,88241.0,88221.0,0.22494021]
[1769541004362,0.05449566,88241.0,88221.0,0.20145295]
[1769541004566,0.05449566,88241.0,88223.0,0.20145295]
[1769541004770,0.05449566,88241.0,88230.0,0.27056012]
[1769541004983,0.03,88239.0,88224.0,0.02348726]
[1769541005189,0.03,88239.0,88225.0,0.20145295]
[1769541005820,0.03,88239.0,88229.0,0.27056012]
[1769541006135,0.03,88238.0,88229.0,0.27056012]
[1769541006337,0.03,88238.0,88230.0,0.20145295]
[1769541006486,0.03,88238.0,88227.0,0.02348726]
[1769541006700,0.03,88236.0,88223.0,0.20145295]
[1769541007260,0.03,88236.0,88213.0,0.17588661]
[1769541007499,0.03,88232.0,88221.0,0.20145295]
[1769541007706,0.03,88232.0,88225.0,0.24]
[1769541008101,0.03,88232.0,88225.0,0.44145295]
[1769541008307,0.03,88231.0,88226.0,0.20145295]
[1769541008526,0.03,88231.0,88226.0,0.22494021]
[1769541008728,0.0004,88246.0,88227.0,0.02348726]
[1769541008932,0.11340059,88245.0,88236.0,0.27056012]
[1769541009174,0.11340059,88244.0,88233.0,0.20145295]
[1769541009368,0.11340059,88243.0,88233.0,0.20145295]
[1769541009563,0.0004,88246.0,88233.0,0.20145295]
[1769541009564,0.14340059,88242.0,88233.0,0.20145295]
[1769541009722,0.03,88240.0,88231.0,0.20145295]
[1769541009925,0.03,88238.0,88231.0,0.22494021]
[1769541010151,0.0004,88246.0,88233.0,0.20145295]
[1769541010356,0.0004,88246.0,88237.0,0.20145295]
[1769541010555,0.0002026,88271.0,88226.0,0.11648]
[1769541010556,0.04988068,88261.0,88245.0,0.27056012]
[1769541010760,0.22806134,88263.0,88243.0,0.20145295]
[1769541010761,0.22806134,88263.0,88249.0,0.27056012]
[1769541010934,0.0004,88264.0,88250.0,0.22486136]
[1769541011114,0.0004,88264.0,88250.0,0.21984051]
[1769541011329,0.0004,88264.0,88250.0,0.21304007]
[1769541011528,0.0004,88264.0,88250.0,0.20453817]
[1769541011529,0.00046411,88259.0,88250.0,0.20453817]
[1769541011730,0.00046411,88259.0,88250.0,0.20113699]
[1769541011928,0.00046411,88259.0,88250.0,0.08285435]
[1769541012139,0.00046411,88259.0,88250.0,0.07696545]
[1769541012339,0.0002568,88268.0,88252.0,0.20145295]
[1769541012548,0.00013912,88268.0,88261.0,0.20145295]
[1769541012751,0.04988068,88266.0,88250.0,0.27056012]
[1769541012947,0.03,88265.0,88251.0,0.20145295]
[1769541013653,0.03,88263.0,88250.0,0.11648]
[1769541014208,0.03,88263.0,88250.0,0.58849307]
[1769541014507,0.03,88263.0,88250.0,0.38704012]
[1769541014650,0.03,88264.0,88250.0,0.38704012]
[1769541015077,0.05449566,88264.0,88250.0,0.38704012]
[1769541015280,0.05449566,88264.0,88250.0,0.11648]
[1769541015883,0.05449566,88264.0,88251.0,0.20145295]
[1769541016088,0.05449566,88264.0,88250.0,0.38704012]
[1769541016521,0.03,88263.0,88251.0,0.20145295]
[1769541017169,0.03,88263.0,88253.0,0.22494021]
[1769541017459,0.03013912,88268.0,88253.0,0.22494021]
[1769541019036,0.03,88267.0,88255.0,0.22494021]
[1769541019235,0.03,88267.0,88256.0,0.02348726]
[1769541019546,0.03,88267.0,88259.0,0.20145295]
[1769541019902,0.03,88267.0,88259.0,0.21133237]
[1769541020198,0.03,88266.0,88259.0,0.19942341]
[1769541020330,0.03,88266.0,88257.0,0.27012189]
[1769541020331,0.03,88266.0,88252.0,0.02348726]
[1769541020534,0.03,88266.0,88253.0,0.22494021]
[1769541020753,0.03,88266.0,88255.0,0.20145295]
[1769541020955,0.03,88265.0,88255.0,0.22494021]
[1769541021239,0.02449566,88273.0,88255.0,0.22494021]
[1769541021240,0.36852303,88273.0,88255.0,0.27012189]
[1769541021473,0.36852303,88273.0,88260.0,0.27012189]
[1769541021474,0.16495735,88273.0,88260.0,0.27012189]
[1769541021686,0.16495735,88273.0,88257.0,0.20145295]
[1769541021687,0.07437634,88273.0,88257.0,0.20145295]
[1769541021891,0.16495735,88273.0,88257.0,0.22494021]
[1769541022107,0.14318231,88272.0,88258.0,0.20145295]
[1769541022439,0.03,88270.0,88257.0,0.02348726]
[1769541022688,0.03,88268.0,88257.0,0.22494021]
[1769541022809,0.16495735,88273.0,88257.0,0.22494021]
[1769541022810,0.03,88266.0,88257.0,0.22494021]
[1769541023008,0.03,88264.0,88257.0,0.02348726]
[1769541023210,0.03,88262.0,88257.0,0.21828287]
[1769541023473,0.03,88262.0,88255.0,0.00013912]
[1769541024118,0.03,88262.0,88207.0,0.000227]
[1769541024303,0.03,88249.0,88230.0,0.27012189]
[1769541024451,0.03,88249.0,88230.0,0.38656189]
[1769541024884,0.03,88249.0,88231.0,0.02389282]
[1769541025247,0.03,88249.0,88232.0,0.202105]
[1769541025457,0.04988068,88259.0,88222.0,0.02389282]
[1769541025458,0.03,88242.0,88222.0,0.02389282]
[1769541025665,0.04988068,88245.0,88220.0,0.27034889]
[1769541025666,0.26401187,88234.0,88220.0,0.000227]
[1769541025865,0.05301879,88230.0,88220.0,0.000227]
[1769541026106,0.05301879,88228.0,88220.0,3.618e-05]
[1769541026311,0.03,88222.0,88220.0,3.618e-05]
[1769541026508,0.04988068,88229.0,88220.0,3.618e-05]
[1769541026509,0.26401187,88221.0,88220.0,3.618e-05]
[1769541026920,0.26401187,88221.0,88220.0,0.00050029]
[1769541027221,0.26401187,88221.0,88213.0,0.17588661]
[1769541027427,0.05301879,88221.0,88213.0,0.16908026]
[1769541027602,0.05301879,88221.0,88213.0,0.16227328]
[1769541027776,0.05301879,88221.0,88213.0,0.15546553]
[1769541027972,0.05301879,88221.0,88213.0,0.15035929]
[1769541028219,0.05301879,88221.0,88213.0,0.14525269]
[1769541028421,0.26401187,88221.0,88213.0,0.14525269]
[1769541029410,0.26401187,88221.0,88213.0,0.13674088]
[1769541029617,0.26401187,88221.0,88213.0,0.12822803]
[1769541029818,0.26401187,88221.0,88213.0,0.12141703]
[1769541030091,0.21099308,88220.0,88213.0,0.11119933]
[1769541030280,0.03,88217.0,88200.0,0.202105]
[1769541030510,0.03,88213.0,88200.0,0.0001391]
[1769541031112,0.05301879,88213.0,88200.0,0.0001391]
[1769541032558,0.27012189,88220.0,88200.0,0.0001391]
[1769541032559,0.03,88219.0,88200.0,0.0001391]
[1769541032762,0.05301879,88219.0,88213.0,0.01]
[1769541032987,0.03,88219.0,88205.0,0.02389282]
[1769541033188,0.03,88219.0,88200.0,0.0001391]
[1769541033189,0.03,88219.0,88211.0,0.02389282]
[1769541033367,0.03,88219.0,88212.0,0.22599782]
[1769541033567,0.03,88224.0,88212.0,0.22599782]
[1769541034748,0.03,88224.0,88201.0,0.202105]
[1769541034947,0.03,88224.0,88205.0,0.02389282]
[1769541035279,0.03,88224.0,88206.0,0.22599782]
[1769541035654,0.07988068,88224.0,88206.0,0.22599782]
[1769541035857,0.07988068,88224.0,88207.0,0.02389282]
[1769541036056,0.07988068,88224.0,88207.0,0.22599782]
[1769541036818,0.07988068,88224.0,88207.0,0.202105]
[1769541037002,0.07988068,88224.0,88208.0,0.22599782]
[1769541037197,0.07988068,88224.0,88208.0,0.21747962]
[1769541037404,0.07988068,88224.0,88208.0,0.20896092]
[1769541037612,0.03,88222.0,88208.0,0.0034483]
[1769541037827,0.03,88222.0,88206.0,0.202105]
[1769541038028,0.03,88222.0,88200.0,0.0001391]
[1769541038230,0.0001391,88200.0,88184.0,0.22599782]
[1769541038456,0.00027802,88200.0,88184.0,0.22599782]
[1769541038691,0.00013892,88200.0,88184.0,0.22599782]
[1769541039524,0.03,88203.0,88186.0,0.02389282]